bitfinex/quotes_ETHUSD_20240827
["timestamp","ask_amount","ask_price","bid_price","bid_amount"]
[1724764098191,7.6262,2622.6,2622.1,2.36376076]
[1724764098395,3.81309,2622.6,2622.1,2.36376076]
[1724764098600,3.81309,2622.6,2622.1,6.17747076]
[1724764098955,2.2708,2623.2,2622.1,2.36376076]
[1724764098956,3.81269,2622.9,2622.1,2.36376076]
[1724764099153,3.81276,2622.8,2622.3,3.81337]
[1724764099381,3.81269,2622.9,2622.3,3.81337]
[1724764099382,7.62534,2622.9,2622.4,0.07625415]
[1724764100108,3.81276,2622.8,2622.4,0.07625415]
[1724764100267,3.81276,2622.8,2622.1,13.85302724]
[1724764100619,3.81288,2622.7,2622.1,10.03934724]
[1724764100784,3.81288,2622.7,2622.1,10.03931724]
[1724764101001,7.62583,2622.7,2622.1,6.10115]
[1724764101321,3.81301,2622.6,2622.1,2.2875]
[1724764101610,3.81288,2622.7,2622.1,6.10123]
[1724764102412,3.81305,2622.6,2622.1,2.2875]
[1724764102906,3.81288,2622.7,2622.1,6.10122]
[1724764103607,3.81303,2622.6,2622.1,6.10122]
[1724764103981,3.81323,2622.5,2622.1,2.2875]
[1724764104305,3.81347,2622.3,2621.8,2.3854]
[1724764104513,3.81347,2622.3,2621.8,6.19956]
[1724764104807,3.81323,2622.5,2621.5,2.4171]
[1724764104808,3.81338,2622.4,2621.5,2.4171]
[1724764104970,3.81393,2622.0,2621.5,2.4171]
[1724764105316,3.81366,2622.2,2621.6,3.81444]
[1724764105669,3.81374,2622.1,2621.6,3.81444]
[1724764105869,3.81355,2622.3,2621.7,3.81429]
[1724764106269,7.62708,2622.3,2621.7,3.81429]
[1724764106603,3.8136,2622.2,2621.6,7.62881]
[1724764106903,3.8136,2622.2,2621.6,3.81437]
[1724764107278,3.8136,2622.2,2621.6,7.62875]
[1724764108222,3.8136,2622.2,2621.6,3.81437]
[1724764108916,3.8136,2622.2,2621.6,7.62874]
[1724764109121,7.62711,2622.3,2621.7,3.8143]
[1724764109413,3.8136,2622.2,2621.7,3.8143]
[1724764109641,3.8136,2622.2,2621.6,3.81437]
[1724764110482,3.8136,2622.2,2621.6,7.62876]
[1724764111082,3.8136,2622.2,2621.7,3.8143]
[1724764111307,3.8136,2622.2,2621.6,3.81437]
[1724764111621,3.8136,2622.2,2621.7,3.81431]
[1724764112930,7.6271,2622.3,2621.7,3.89058603]
[1724764113803,3.81361,2622.2,2621.7,3.89058603]
[1724764114194,3.81353,2622.3,2621.7,3.89058603]
[1724764114386,7.62711,2622.3,2621.7,3.89058603]
[1724764114805,0.55,2622.6,2621.5,6.35526724]
[1724764114806,3.81322,2622.5,2622.0,2.3594]
[1724764115002,3.81339,2622.4,2622.0,2.3594]
[1724764115318,3.81367,2622.2,2621.6,2.3594]
[1724764115519,3.81367,2622.2,2621.7,3.81431]
[1724764116243,3.81345,2622.3,2621.8,0.07627456]
[1724764116918,3.81324,2622.5,2621.9,3.81395]
[1724764117230,3.81324,2622.5,2622.0,0.0762667]
[1724764117428,3.81334,2622.4,2622.0,0.0762667]
[1724764118169,3.81324,2622.5,2622.0,0.0762667]
[1724764118302,7.62653,2622.5,2622.0,0.0762667]
[1724764118500,3.81324,2622.5,2622.0,0.0762667]
[1724764118705,2.4825,2623.1,2622.1,2.4065]
[1724764118902,3.81201,2623.3,2622.6,3.813]
[1724764119133,4.20988943,2623.6,2622.8,3.81261]
[1724764119342,3.81185,2623.4,2622.9,0.076241]
[1724764119561,3.81221,2623.2,2622.9,0.076241]
[1724764120218,3.81221,2623.2,2622.7,0.07624286]
[1724764120410,3.81164,2623.6,2622.8,2.48274286]
[1724764120700,3.81171,2623.5,2622.9,3.81246]
[1724764120900,3.81171,2623.5,2623.0,0.07623585]
[1724764121648,3.8124,2623.1,2622.5,6.2196]
[1724764121951,3.81239,2623.1,2622.5,6.21963]
[1724764122121,3.81237,2623.1,2622.5,6.21963]
[1724764122329,3.81246,2623.0,2622.5,6.21963]
[1724764122530,3.81259,2622.9,2622.3,9.29701]
[1724764122840,3.81259,2622.9,2622.4,3.81329]
[1724764123156,3.81237,2623.1,2622.4,3.81329]
[1724764123157,3.8125,2623.0,2622.4,3.81329]
[1724764123830,3.8125,2623.0,2622.3,6.29701]
[1724764123831,3.81264,2622.9,2622.3,6.29701]
[1724764124044,3.81314,2622.6,2622.0,9.12924]
[1724764124351,3.81312,2622.6,2622.1,3.81371]
[1724764124975,3.81312,2622.6,2621.9,3.81391]
[1724764125259,2.3592,2622.8,2621.7,2.2737]
[1724764125260,3.8136,2622.2,2621.7,2.2737]
[1724764125410,3.81334,2622.4,2621.8,3.89030494]
[1724764125614,7.62674,2622.4,2621.8,0.07627494]
[1724764125817,3.81334,2622.4,2621.8,3.89044494]
[1724764126214,3.81334,2622.4,2621.8,3.89036494]
[1724764126457,7.62672,2622.4,2621.8,3.89036494]
[1724764127031,3.81345,2622.3,2621.8,3.89036494]
[1724764127563,3.81334,2622.4,2621.8,7.70444494]
[1724764128248,3.81334,2622.4,2621.8,3.89035494]
[1724764128436,3.81345,2622.3,2621.8,3.89035494]
[1724764128985,3.81424,2621.8,2621.3,3.81489]
[1724764129274,3.81447,2621.6,2621.2,2.416]
[1724764129424,3.81424,2621.8,2621.2,2.416]
[1724764129624,3.81424,2621.8,2621.3,3.81489]
[1724764131354,3.81424,2621.8,2621.2,6.23103]
[1724764131577,3.81433,2621.7,2621.2,2.416]
[1724764131869,3.81448,2621.6,2620.9,6.29978]
[1724764132086,3.81457,2621.6,2620.9,6.29977]
[1724764132259,6.17239,2621.8,2621.0,3.81533]
[1724764132427,6.17239,2621.8,2621.1,3.81516]
[1724764132428,3.81442,2621.7,2621.1,3.81516]
[1724764133060,3.81442,2621.7,2621.2,3.81504]
[1724764133751,3.81442,2621.7,2621.0,3.81533]
[1724764133752,3.81442,2621.7,2621.0,3.81523]
[1724764133928,3.81469,2621.5,2620.9,6.29987]
[1724764134124,7.62913,2621.6,2620.9,6.29987]
[1724764134372,3.81439,2621.7,2621.1,3.81506]
[1724764134542,3.81439,2621.7,2621.2,3.89130065]
[1724764135264,3.81448,2621.6,2621.2,0.07629065]
[1724764135429,3.81439,2621.7,2621.2,0.07629065]
[1724764136176,3.81412,2621.9,2621.2,3.89122065]
[1724764136331,3.81412,2621.9,2621.2,3.81493]
[1724764136731,3.81412,2621.9,2621.3,0.07628557]
[1724764137282,3.81425,2621.8,2621.3,0.07628557]
[1724764138285,3.81435,2621.7,2621.3,0.07628557]
[1724764138456,7.62874,2621.7,2621.3,0.07628557]
[1724764138784,3.81435,2621.7,2621.3,0.07628557]
[1724764139280,3.8146,2621.6,2621.3,0.07629019]
[1724764140458,3.81341,2622.4,2621.3,0.07629019]
[1724764140459,0.39834743,2622.6,2621.4,3.93816724]
[1724764140640,3.81296,2622.7,2622.1,3.93816724]
[1724764140843,3.81237,2623.1,2622.4,3.93816724]
[1724764141065,2.2975,2623.4,2622.5,0.07624823]
[1724764141290,3.81288,2622.7,2622.3,2.3082]
[1724764141489,3.81272,2622.8,2622.3,2.3082]
[1724764141777,3.81263,2622.9,2622.3,2.3082]
[1724764142479,3.81263,2622.9,2622.3,6.12157]
[1724764142839,3.81263,2622.9,2622.4,3.81328]
[1724764143280,3.81232,2623.1,2622.4,3.81321]
[1724764143576,3.81232,2623.1,2622.5,3.88933408]
[1724764144156,3.81206,2623.3,2622.7,3.81283]
[1724764144491,3.81151,2623.7,2622.9,3.81249]
[1724764144657,3.81151,2623.7,2623.0,0.07623573]
[1724764144857,3.81165,2623.6,2622.9,3.88872573]
[1724764146973,3.81187,2623.4,2622.9,3.88872573]
[1724764149543,3.81165,2623.6,2622.9,7.70113573]
[1724764149544,3.81172,2623.5,2622.9,7.70113573]
[1724764149744,3.81172,2623.5,2622.9,3.88868573]
[1724764149977,3.81172,2623.5,2622.9,7.70117573]
[1724764150177,3.81172,2623.5,2622.9,3.88868573]
[1724764150582,3.81172,2623.5,2622.9,7.70117573]
[1724764150887,3.81172,2623.5,2622.9,3.88868573]
[1724764151084,3.81165,2623.6,2623.1,3.81221]
[1724764151585,3.81135,2623.8,2623.2,3.88830819]
[1724764152092,2.3237,2623.9,2623.0,3.93816724]
[1724764152093,3.81164,2623.6,2623.0,3.81242]
[1724764152316,3.8117,2623.5,2623.0,3.81242]
[1724764153386,3.81185,2623.4,2622.8,6.18596]
[1724764153587,3.81185,2623.4,2622.8,3.81264]
[1724764154004,3.81185,2623.4,2622.9,3.8125]
[1724764154680,3.81185,2623.4,2622.8,3.81263]
[1724764154873,3.81185,2623.4,2622.9,3.8125]
[1724764155486,7.6233,2623.6,2623.0,3.81239]
[1724764155699,7.6233,2623.6,2623.0,6.18609]
[1724764155895,3.8117,2623.5,2623.0,6.26233121]
[1724764156863,3.81165,2623.6,2623.0,6.26233121]
[1724764157069,6.71845,2623.8,2620.8,1.19908808]
[1724764157070,2.3766,2621.4,2620.8,1.19908808]
[1724764157354,2.3766,2621.4,2620.5,0.79939205]
[1724764157355,0.0664,2621.0,2620.9,0.07631546]
[1724764158224,0.0664,2621.0,2620.7,3.81566]
[1724764158749,0.0664,2621.0,2620.6,2.4911]
[1724764159153,0.0664,2621.0,2620.6,6.307]
[1724764159359,0.0664,2621.0,2620.6,2.4911]
[1724764160568,0.0664,2621.0,2620.6,5.4911]
[1724764160782,0.0664,2621.0,2620.7,0.07629813]
[1724764163249,3.81491,2621.3,2620.7,0.07629813]
[1724764163448,7.62994,2621.3,2620.7,0.07629813]
[1724764163690,3.81491,2621.3,2620.7,0.07629813]
[1724764163845,7.62993,2621.3,2620.7,0.07629813]
[1724764164064,7.6299,2621.3,2620.7,0.07629813]
[1724764164839,3.81491,2621.3,2620.7,0.07629813]
[1724764165069,7.62989,2621.3,2620.7,0.07629813]
[1724764165283,3.81491,2621.3,2620.7,0.07629813]
[1724764166479,7.6299,2621.3,2620.7,0.07629813]
[1724764167238,3.81507,2621.2,2620.7,0.07629813]
[1724764167453,3.8157,2620.8,2620.1,2.4145]
[1724764167679,3.8157,2620.8,2619.9,3.81684]
[1724764167680,3.81571,2620.8,2619.9,3.81684]
[1724764167876,3.81603,2620.6,2620.0,3.81668]
[1724764168177,3.81603,2620.6,2620.1,3.81664]
[1724764168543,7.63144,2620.8,2620.1,3.81664]
[1724764168739,3.81571,2620.8,2620.1,3.81664]
[1724764169472,3.81584,2620.7,2620.1,3.81664]
[1724764170253,3.8151,2621.2,2619.9,3.0]
[1724764170254,3.81516,2621.2,2620.5,3.81603]
[1724764170570,3.8149,2621.3,2620.7,3.81572]
[1724764170740,3.81505,2621.2,2620.8,0.07630062]
[1724764172447,3.81521,2621.1,2620.8,0.07630062]
[1724764172987,3.81521,2621.1,2620.5,3.89234233]
[1724764174162,3.81534,2621.0,2620.5,0.07630233]
[1724764174645,3.81607,2620.5,2620.3,7.38]
[1724764174848,3.81607,2620.5,2620.0,6.22018]
[1724764175052,3.81607,2620.5,2620.1,3.0]
[1724764175590,3.81592,2620.6,2620.1,3.0]
[1724764176274,3.81592,2620.6,2620.1,6.81664]
[1724764176676,5.24153801,2621.3,2620.1,6.81664]
[1724764176677,5.3897,2621.5,2620.2,0.07631785]
[1724764176862,3.81483,2621.4,2620.8,3.81555]
[1724764177067,3.81483,2621.4,2620.9,0.07629484]
[1724764177758,3.81461,2621.5,2620.9,3.89175484]
[1724764177990,3.81476,2621.4,2620.9,0.07629484]
[1724764178655,7.6296,2621.4,2620.9,0.07629484]
[1724764178858,3.81476,2621.4,2620.9,0.07629484]
[1724764180505,2.371,2621.0,2620.0,2.3643]
[1724764180651,6.18635,2621.0,2620.0,6.18105]
[1724764180854,3.81577,2620.7,2620.1,3.81656]
[1724764181090,3.81577,2620.7,2620.2,3.81648]
[1724764181794,2.44724128,2621.0,2620.2,3.81648]
[1724764181795,3.81541,2621.0,2620.4,3.81611]
[1724764182089,3.81548,2620.9,2620.3,3.81634]
[1724764183857,7.63105,2620.9,2620.3,3.81634]
[1724764184088,7.63109,2620.9,2620.3,3.81634]
[1724764184291,7.63107,2620.9,2620.3,3.81634]
[1724764184695,3.81548,2620.9,2620.3,3.81634]
[1724764185203,7.63107,2620.9,2620.3,3.81634]
[1724764185563,3.81572,2620.8,2620.2,3.81645]
[1724764187060,3.81572,2620.8,2620.3,3.81633]
[1724764188705,3.81602,2620.6,2620.0,10.11360242]
[1724764188870,3.81608,2620.5,2620.1,3.0]
[1724764190108,3.81593,2620.6,2620.1,6.81663]
[1724764191924,2.4653,2621.4,2620.2,0.07631562]
[1724764192089,2.4653,2621.4,2620.1,3.0]
[1724764192090,3.81536,2621.0,2620.5,3.816]
[1724764193600,7.6308,2621.0,2620.5,3.816]
[1724764194111,3.81536,2621.0,2620.5,3.816]
[1724764195596,7.6308,2621.0,2620.4,3.8162]
[1724764195899,3.8155,2620.9,2620.4,3.8162]
[1724764200461,3.8155,2620.9,2620.2,3.8164]
[1724764200462,3.81579,2620.7,2620.2,3.8164]
[1724764201434,3.81565,2620.8,2620.2,3.8164]
[1724764201905,3.81565,2620.8,2620.1,14.19664]
[1724764201906,3.81565,2620.8,2620.3,3.81635]
[1724764202541,3.8155,2620.9,2620.3,3.81625]
[1724764203154,3.8155,2620.9,2620.4,3.81617]
[1724764207155,3.8155,2620.9,2620.3,3.81634]
[1724764207156,7.63107,2620.9,2620.3,3.81634]
[1724764207452,3.81563,2620.8,2620.3,3.81634]
[1724764208414,3.81599,2620.6,2620.1,10.38]
[1724764208610,3.81583,2620.7,2620.1,10.38]
[1724764208854,3.81583,2620.7,2620.1,14.19663]
[1724764209027,3.81583,2620.7,2620.2,3.81645]
[1724764209225,3.81583,2620.7,2620.3,0.07631552]
[1724764209427,3.81569,2620.8,2620.3,3.89264552]
[1724764210034,3.8158,2620.7,2620.2,3.81649]
[1724764210448,7.63167,2620.7,2620.1,14.19664]
[1724764210619,3.8158,2620.7,2620.2,3.81641]
[1724764210822,3.81542,2621.0,2620.5,3.81605]
[1724764211128,3.81542,2621.0,2620.6,0.07630765]
[1724764211129,3.81551,2620.9,2620.6,0.07630765]
[1724764211340,3.81576,2620.8,2620.1,14.1965]
[1724764211641,3.81576,2620.8,2620.3,3.81634]
[1724764212349,2.4836,2620.7,2620.2,3.8165]
[1724764212556,3.81631,2620.4,2619.8,3.81707]
[1724764212958,7.63266,2620.4,2619.7,7.63428]
[1724764213252,7.63266,2620.4,2619.7,3.81713]
[1724764213438,2.2655,2620.1,2619.3,6.0865]
[1724764213623,2.2655,2620.1,2619.3,2.2688]
[1724764213624,3.81687,2620.0,2619.3,2.2688]
[1724764213825,3.81709,2619.8,2619.2,3.81795]
[1724764214063,3.81695,2619.9,2619.3,3.81779]
[1724764214271,3.81688,2620.0,2619.4,3.81766]
[1724764214470,7.71004128,2620.0,2619.5,0.07634154]
[1724764214672,3.89312128,2620.0,2619.5,0.07634154]
[1724764214870,3.89311128,2620.0,2619.3,3.81779]
[1724764215041,3.89311128,2620.0,2619.3,3.81773]
[1724764216026,7.70999128,2620.0,2619.3,3.81773]
[1724764216222,6.08223,2620.1,2619.5,3.81748]
[1724764216465,3.8168,2620.0,2619.5,3.81748]
[1724764216626,3.8168,2620.0,2619.3,7.63541]
[1724764216826,3.8171,2619.8,2619.3,3.81779]
[1724764217174,3.81697,2619.9,2619.3,3.81779]
[1724764217373,3.81775,2619.4,2618.7,3.81855]
[1724764217542,0.07624128,2619.5,2618.7,3.81859]
[1724764217723,2.8185,2619.8,2619.1,3.81809]
[1724764217724,2.2685,2619.8,2619.1,3.81809]
[1724764217927,2.2685,2619.8,2619.2,0.07634482]
[1724764218128,2.2685,2619.8,2619.3,3.81777]
[1724764218340,3.89301128,2620.1,2619.4,0.07634411]
[1724764218582,6.16151128,2620.1,2619.4,0.07634411]
[1724764219078,6.08527,2620.1,2619.4,0.07634411]
[1724764219975,6.08527,2620.1,2619.4,3.89398411]
[1724764219976,3.81679,2620.0,2619.4,3.89398411]
[1724764220286,6.08527,2620.1,2619.5,3.81752]
[1724764220455,6.08527,2620.1,2619.5,3.89385993]
[1724764221066,3.81679,2620.0,2619.5,0.07633993]
[1724764221559,3.81679,2620.0,2619.4,0.07634002]
[1724764221744,7.63396,2619.9,2619.3,3.81771]
[1724764222082,0.07624128,2620.0,2618.5,3.8189]
[1724764222083,3.81781,2619.3,2618.5,3.8189]
[1724764222283,3.81805,2619.2,2618.5,3.81886]
[1724764222777,3.89429128,2619.2,2618.5,3.81886]
[1724764223082,6.08052,2619.1,2618.5,3.81886]
[1724764223435,3.81791,2619.3,2618.4,3.81901]
[1724764223436,3.81791,2619.3,2618.6,3.89514375]
[1724764224117,6.08043,2619.2,2618.6,3.81874]
[1724764224285,6.08043,2619.2,2618.7,0.07636114]
[1724764224286,2.2624,2619.2,2618.7,0.07636114]
[1724764224479,3.81791,2619.3,2618.7,3.89497114]
[1724764224669,3.81791,2619.3,2618.8,0.07636098]
[1724764224866,6.08,2619.5,2618.8,0.07636098]
[1724764225109,6.08,2619.5,2618.8,3.89488098]
[1724764225418,3.81775,2619.4,2618.8,3.89488098]
[1724764225767,3.81785,2619.3,2618.8,3.89488098]
[1724764225967,3.81785,2619.3,2618.8,0.07636098]
[1724764226270,3.81785,2619.3,2618.7,3.8186]
[1724764227293,3.81785,2619.3,2618.7,3.89495918]
[1724764227606,6.07999,2619.5,2618.9,3.81832]
[1724764227767,6.07959,2619.8,2619.2,3.93252242]
[1724764227975,3.81695,2619.9,2619.3,3.89406384]
[1724764228169,3.81695,2619.9,2619.4,3.81765]
[1724764228508,6.07917,2620.1,2619.5,3.89384882]
[1724764228683,2.2996,2620.4,2619.5,0.07633882]
[1724764228885,3.8157,2620.8,2619.9,3.81693]
[1724764228886,3.81602,2620.6,2619.9,3.81693]
[1724764229212,6.11537,2620.7,2620.1,7.74916242]
[1724764229378,6.11537,2620.7,2620.2,0.07631607]
[1724764229580,3.81575,2620.8,2620.2,3.89278607]
[1724764229785,7.6315,2620.8,2620.3,0.07631607]
[1724764229979,3.81579,2620.7,2620.3,0.07631607]
[1724764230515,3.81594,2620.6,2620.3,0.07631607]
[1724764230820,3.81594,2620.6,2619.9,6.18934]
[1724764230975,3.81621,2620.4,2619.8,3.93252242]
[1724764231170,3.81644,2620.3,2619.6,2.3725]
[1724764231444,3.81644,2620.3,2619.7,3.81711]
[1724764231798,3.81644,2620.3,2619.8,3.81707]
[1724764232109,3.81625,2620.4,2619.8,3.81707]
[1724764232912,2.2996,2620.7,2620.0,3.81667]
[1724764232913,9.93131,2620.7,2620.0,3.81667]
[1724764233123,2.495,2621.0,2620.4,3.81612]
[1724764233408,7.74703242,2621.6,2620.6,3.81591]
[1724764233409,3.81515,2621.2,2620.6,3.81591]
[1724764233616,3.81515,2621.2,2620.7,0.07630719]
[1724764234111,6.31002,2621.3,2620.7,0.07630719]
[1724764234112,3.81522,2621.1,2620.7,0.07630719]
[1724764234277,7.63051,2621.1,2620.7,0.07630719]
[1724764234483,7.63051,2621.1,2620.5,0.07630723]
[1724764235008,2.495,2621.3,2620.2,11.1964]
[1724764235009,3.81548,2620.9,2620.2,11.1964]
[1724764235226,0.07624128,2620.8,2620.2,11.19649]
[1724764235425,3.81578,2620.7,2620.2,7.38]
[1724764235916,3.89194128,2620.8,2620.2,11.19648]
[1724764236334,3.81593,2620.6,2620.0,3.81665]
[1724764236480,2.2706,2620.8,2620.1,0.07632032]
[1724764236683,3.81551,2620.9,2620.2,3.81636]
[1724764236882,3.81551,2620.9,2620.3,3.81633]
[1724764237114,3.81542,2621.0,2620.4,0.07631428]
[1724764237431,3.81551,2620.9,2620.4,0.07631428]
[1724764238230,3.81551,2620.9,2620.3,3.81632]
[1724764238231,3.81586,2620.7,2620.0,7.63337]
[1724764238378,3.81586,2620.7,2620.1,3.81664]
[1724764239424,3.81564,2620.8,2620.2,3.81647]
[1724764239732,3.81564,2620.8,2620.2,3.81642]
[1724764240237,7.63141,2620.8,2620.2,3.81642]
[1724764240593,3.81628,2620.4,2620.0,7.38]
[1724764240798,3.81636,2620.3,2620.0,7.38]
[1724764241735,3.81621,2620.4,2620.0,7.38]
[1724764242292,6.26082128,2620.5,2620.0,7.38]
[1724764242938,3.81578,2620.7,2620.0,11.19675]
[1724764243139,2.40124128,2620.8,2620.2,7.63298]
[1724764243323,3.81528,2621.1,2620.6,3.81589]
[1724764243512,7.63059,2621.1,2620.4,7.63219]
[1724764243847,3.81533,2621.0,2620.5,0.07631034]
[1724764244347,3.81528,2621.1,2620.5,3.89233034]
[1724764244548,3.81528,2621.1,2620.6,3.81587]
[1724764244852,3.81528,2621.1,2620.7,0.07630716]
[1724764245020,3.8154,2621.0,2620.5,3.81606]
[1724764245228,3.8154,2621.0,2620.4,3.81619]
[1724764245734,3.8154,2621.0,2620.5,3.89236725]
[1724764245934,3.81527,2621.1,2620.6,3.81588]
[1724764246115,3.81527,2621.1,2620.6,3.8921872]
[1724764246906,7.63058,2621.1,2620.6,0.0763072]
[1724764247412,3.81527,2621.1,2620.6,3.81591]
[1724764247613,7.63056,2621.1,2620.6,3.81591]
[1724764247919,3.81534,2621.0,2620.5,3.81606]
[1724764249636,6.14018,2621.2,2620.6,3.81585]
[1724764249934,6.14018,2621.2,2620.5,3.81606]
[1724764249935,3.81519,2621.1,2620.5,3.81606]
[1724764250133,7.63049,2621.1,2620.5,3.81606]
[1724764251555,7.63051,2621.1,2620.5,3.81606]
[1724764251754,2.325,2621.2,2620.2,3.93252242]
[1724764251917,3.81535,2621.0,2620.5,3.81597]
[1724764252763,3.81535,2621.0,2620.5,7.63194]
[1724764252952,3.89144128,2621.1,2620.5,3.81598]
[1724764255796,3.81535,2621.0,2620.5,3.81598]
[1724764255943,0.07624128,2620.9,2620.1,6.22727]
[1724764256137,0.07624128,2620.9,2620.4,3.8162]
[1724764256138,3.81558,2620.9,2620.4,3.8162]
[1724764256368,6.14013,2621.2,2620.6,3.8159]
[1724764256588,3.81519,2621.1,2620.7,0.07630659]
[1724764257550,3.81519,2621.1,2620.6,0.07630665]
[1724764257862,6.14013,2621.2,2620.6,0.07630665]
[1724764257863,3.81534,2621.0,2620.6,0.07630665]
[1724764258182,3.8157,2620.8,2620.3,3.81624]
[1724764258873,7.63091,2621.0,2620.3,3.81624]
[1724764259084,3.81551,2620.9,2620.4,3.81619]
[1724764259443,3.81551,2620.9,2620.3,3.81624]
[1724764259643,3.81564,2620.8,2620.3,3.81624]
[1724764259844,3.81549,2620.9,2620.3,3.81624]
[1724764260080,3.81549,2620.9,2620.4,3.8161]
[1724764261150,7.70677128,2621.1,2620.5,3.81604]
[1724764261353,6.14004,2621.2,2620.6,0.07630759]
[1724764261650,6.14004,2621.2,2620.7,3.81571]
[1724764262121,6.14004,2621.2,2620.7,3.81569]
[1724764262343,3.81501,2621.3,2620.7,3.81569]
[1724764262476,7.28,2621.7,2621.2,3.81503]
[1724764262477,3.81438,2621.7,2621.2,3.81503]
[1724764262689,3.81438,2621.7,2621.1,7.74758242]
[1724764262917,3.81455,2621.6,2621.2,0.0762919]
[1724764268125,3.81461,2621.5,2621.1,0.07629205]
[1724764268541,3.81461,2621.5,2620.8,3.93252242]
[1724764268687,2.4763,2621.8,2620.6,2.4862]
[1724764268688,3.8149,2621.3,2620.6,6.30201]
[1724764268892,3.81514,2621.2,2620.6,6.30201]
[1724764269729,3.81514,2621.2,2620.6,10.11786]
[1724764269928,6.1115,2621.3,2620.7,3.81568]
[1724764270128,6.1115,2621.3,2620.8,3.81554]
[1724764270429,2.3792,2621.6,2621.1,3.8151]
[1724764270633,7.62883,2621.7,2621.2,0.07629239]
[1724764270932,3.81441,2621.7,2621.2,0.07629239]
[1724764271289,3.81441,2621.7,2621.2,3.89131239]
[1724764271497,3.89042128,2621.8,2621.2,3.89131239]
[1724764271834,3.81434,2621.7,2621.2,3.89131239]
[1724764272196,3.81434,2621.7,2621.2,3.81502]
[1724764273423,3.81418,2621.8,2621.2,7.62996]
[1724764273612,3.89042128,2621.8,2621.2,3.81494]
[1724764274051,3.81433,2621.7,2621.2,3.81494]
[1724764274641,3.81418,2621.8,2621.3,3.89116219]
[1724764274812,2.3792,2621.9,2621.4,3.81474]
[1724764275141,3.81403,2621.9,2621.4,3.8909564]
[1724764275303,9.22244,2622.1,2621.4,3.8909464]
[1724764275509,3.81369,2622.2,2621.7,3.81431]
[1724764275724,7.62736,2622.2,2621.7,3.81431]
[1724764275930,3.81381,2622.1,2621.6,3.89073843]
[1724764276316,3.81367,2622.2,2621.7,3.81431]
[1724764276543,3.81367,2622.2,2621.7,3.89058788]
[1724764276903,3.81367,2622.2,2621.7,0.07627788]
[1724764276904,7.62736,2622.2,2621.7,0.07627788]
[1724764277103,6.22206,2622.4,2621.8,3.81408]
[1724764277570,2.4087,2622.4,2621.7,3.81421]
[1724764277723,3.81351,2622.3,2621.7,7.62844]
[1724764278039,7.62729,2622.2,2621.7,3.81421]
[1724764278244,7.62728,2622.2,2621.7,3.81421]
[1724764278397,7.62728,2622.2,2621.5,7.629]
[1724764278601,3.81361,2622.2,2621.5,3.81447]
[1724764278837,3.81361,2622.2,2621.7,3.81431]
[1724764279038,0.07624128,2622.3,2621.7,7.6285]
[1724764279039,3.88968128,2622.3,2621.7,7.6285]
[1724764279427,3.81306,2622.6,2621.9,3.8139]
[1724764279630,3.81306,2622.6,2621.8,2.34537192]
[1724764279631,2.3265,2622.7,2622.2,3.81357]
[1724764279818,3.81277,2622.8,2622.3,3.88970174]
[1724764280209,3.81288,2622.7,2622.3,0.07626174]
[1724764280402,3.81277,2622.8,2622.3,0.07626174]
[1724764280614,7.62563,2622.8,2622.3,0.07626174]
[1724764280829,3.81286,2622.7,2622.3,0.07626174]
[1724764281143,6.139,2623.0,2622.3,3.88957174]
[1724764281346,6.139,2623.0,2622.4,3.81328]
[1724764281520,10.02777128,2623.0,2622.4,3.8895374]
[1724764281708,3.8126,2622.9,2622.4,0.0762574]
[1724764282041,3.81216,2623.2,2622.6,3.81297]
[1724764282352,7.74390242,2623.8,2622.9,7.74501242]
[1724764282353,3.81158,2623.6,2622.9,7.74501242]
[1724764282553,3.81158,2623.6,2623.0,3.88863995]
[1724764282716,3.81133,2623.8,2623.1,7.74478242]
[1724764282931,3.81133,2623.8,2623.1,7.74477242]
[1724764283253,3.81133,2623.8,2623.1,3.93252242]
[1724764283426,3.81143,2623.7,2623.1,3.93252242]
[1724764283746,3.81143,2623.7,2623.0,3.81233]
[1724764284104,3.81172,2623.5,2622.9,7.74498242]
[1724764284353,0.07624128,2623.4,2622.8,2.4504]
[1724764284560,3.8121,2623.3,2622.8,2.4504]
[1724764285561,3.81156,2623.6,2622.9,3.81243]
[1724764286448,3.81134,2623.8,2623.2,3.81205]
[1724764286813,2.49624128,2623.9,2623.3,3.88813945]
[1724764287014,68.06281735,2628.2,2623.6,7.74398242]
[1724764287015,3.81072,2624.2,2623.6,7.74398242]
[1724764287216,3.80999,2624.7,2624.0,2.288]
[1724764287419,3.80999,2624.7,2624.2,3.93252242]
[1724764287620,3.81002,2624.7,2624.3,0.07620142]
[1724764287834,3.81025,2624.5,2624.3,0.07620142]
[1724764288052,3.81025,2624.5,2624.0,2.288]
[1724764288352,3.81002,2624.7,2624.0,6.09894]
[1724764288513,3.81002,2624.7,2624.1,3.81077]
[1724764289374,2.4782,2625.1,2624.6,3.93252242]
[1724764289375,3.80946,2625.1,2624.6,3.93252242]
[1724764289515,7.61831,2625.3,2624.7,0.07618935]
[1724764289720,3.80912,2625.3,2624.7,0.07618935]
[1724764289949,3.80897,2625.4,2624.8,3.93252242]
[1724764290160,3.9341803,2625.5,2624.9,0.07618353]
[1724764290521,3.80941,2625.1,2624.5,6.20433]
[1724764290727,3.80941,2625.1,2624.5,2.3941]
[1724764291024,3.80918,2625.3,2624.6,7.74252242]
[1724764291249,3.80924,2625.2,2624.6,7.74252242]
[1724764291453,3.88566128,2625.1,2624.5,5.3941]
[1724764291724,3.8097,2624.9,2624.5,3.0]
[1724764291928,3.80942,2625.1,2624.4,3.0]
[1724764292150,0.07624128,2625.0,2624.3,3.93252242]
[1724764292353,3.80991,2624.8,2624.2,2.3941]
[1724764292786,6.41072242,2624.7,2623.7,2.3941]
[1724764293069,3.88638128,2624.6,2623.7,2.3941]